fUSD/lending_fUSD_20241225
["ID","MTS","AMOUNT","RATE_DAILY","PERIOD"]
[346569837,1735098648621,-500.0,0.00012914,2]
[346569838,1735098648631,-598.27,0.00012914,2]
[346569839,1735098648643,-846.58,0.00012914,2]
[346569840,1735098648653,-2256.49,0.00012914,2]
[346569841,1735098648663,-500.0,0.00012914,2]
[346569842,1735098648673,-500.0,0.00012914,2]
[346569843,1735098648683,-670.81,0.00012914,2]
[346569844,1735098648694,-500.0,0.00012914,2]
[346569845,1735098648704,-1494.61,0.00012914,2]
[346569846,1735098648717,-357.13946129,0.00012914,2]
[346569847,1735098648727,-505.56445309,0.00012914,2]
[346569848,1735098648737,-563.85,0.00012914,2]
[346569849,1735098648747,-506.17449648,0.00012914,2]
[346569850,1735098648757,-3448.65,0.00012914,2]
[346569851,1735098648768,-500.0,0.00012914,2]
[346569852,1735098648777,-500.0,0.00012914,2]
[346569853,1735098648787,-151.0,0.00012914,2]
[346569854,1735098648798,-151.0,0.00012914,2]
[346569855,1735098648808,-151.0,0.00012914,2]
[346569856,1735098648817,-205.21695218,0.00012914,2]
[346569857,1735098648827,-500.0,0.00012914,2]
[346569858,1735098648837,-500.0,0.00012914,2]
[346569859,1735098648847,-500.0,0.00012914,2]
[346569860,1735098648857,-1248.52,0.00012914,2]
[346569861,1735098648868,-500.0,0.00012914,2]
[346569862,1735098648877,-3292.58,0.00012914,2]
[346569863,1735098648886,-500.0,0.00012914,2]
[346569864,1735098648896,-500.0,0.00012914,2]
[346569865,1735098648907,-500.0,0.00012914,2]
[346569866,1735098648916,-582.97,0.00012914,2]
[346569867,1735098648926,-500.0,0.00012914,2]
[346569868,1735098648935,-500.0,0.00012914,2]
[346569869,1735098648945,-500.0,0.00012914,2]
[346569870,1735098648954,-1424.16,0.00012914,2]
[346569871,1735098648968,-500.0,0.00012914,2]
[346569872,1735098648977,-500.0,0.00012914,2]
[346569873,1735098648987,-500.0,0.00012914,2]
[346569874,1735098648997,-500.0,0.00012914,2]
[346569875,1735098649006,-500.0,0.00012914,2]
[346569876,1735098649015,-500.0,0.00012914,2]
[346569877,1735098649024,-500.0,0.00012914,2]
[346569878,1735098649034,-500.0,0.00012914,2]
[346569879,1735098649043,-500.0,0.00012914,2]
[346569880,1735098649053,-500.0,0.00012914,2]
[346569881,1735098649062,-2741.03,0.00012914,2]
[346569882,1735098649071,-500.0,0.00012914,2]
[346569883,1735098649080,-500.0,0.00012914,2]
[346569884,1735098649089,-98.79417772,0.00012914,2]
[346569885,1735098649337,-332.6633852,0.00012913,2]
[346569886,1735098649348,-167.3366148,0.00012913,2]
[346569887,1735098649358,-401.20582228,0.00012914,2]
[346569888,1735098649367,-1730.58452187,0.00012914,2]
[346569923,1735099831600,-655.25,9.749e-05,2]
[346569924,1735099831610,-202.15,0.00010134,2]
[346569925,1735099831620,-203.55,0.00010135,2]
[346569926,1735099831630,-201.59,0.00010135,2]
[346569927,1735099831640,-203.04,0.00010135,2]
[346569928,1735099831650,-99.93600315,0.00010135,2]
[346569929,1735099831757,-103.69399685,0.00010135,2]
[346569930,1735099831766,-201.08,0.00010135,2]
[346569931,1735099831776,-200.35,0.00010135,2]
[346569932,1735099831786,-201.56,0.00010135,2]
[346569933,1735099831796,-200.58,0.00010135,2]
[346569934,1735099831805,-202.88,0.00010136,2]
[346569935,1735099831815,-202.9,0.00010136,2]
[346569936,1735099831824,-202.95,0.00010136,2]
[346569937,1735099831834,-203.49,0.00010136,2]
[346569938,1735099831843,-201.09,0.00010136,2]
[346569939,1735099831852,-201.55,0.00010136,2]
[346569940,1735099831863,-200.97,0.00010136,2]
[346569941,1735099831872,-203.15,0.00010136,2]
[346569942,1735099831881,-201.46,0.00010137,2]
[346569943,1735099831891,-202.15,0.00010137,2]
[346569945,1735099831902,-200.13,0.00010137,2]
[346569946,1735099831912,-201.69,0.00010137,2]
[346569948,1735099831924,-200.01,0.00010137,2]
[346569950,1735099831934,-201.14,0.00010137,2]
[346569952,1735099831944,-202.93,0.00010137,2]
[346569954,1735099831953,-201.15,0.00010137,2]
[346569956,1735099831962,-201.44,0.00010137,2]
[346569958,1735099831972,-271.61,0.00010137,2]
[346569961,1735099831982,-331.29,0.00011662,2]
[346569964,1735099831991,-311.29,0.00011682,2]
[346569967,1735099832000,-199.31,0.00011694,2]
[346569970,1735099832009,-250.0,0.00011822,2]
[346569973,1735099832019,-1000.0,0.00011855,2]
[346569975,1735099832028,-201.39,0.00011943,2]
[346569977,1735099832037,-201.25,0.00011943,2]
[346569979,1735099832047,-201.87,0.00011943,2]
[346569981,1735099832056,-202.85,0.00011943,2]
[346569982,1735099832066,-2059.08931694,0.00012,2]
[346569983,1735099832075,-655.25,0.00012013,2]
[346569984,1735099832085,-4481.23,0.00012087,2]
[346569985,1735099832095,-150.99,0.00012087,2]
[346569986,1735099832105,-999.99,0.00012087,2]
[346569987,1735099832118,-19383.29,0.00012087,2]
[346569988,1735099832128,-2601.37,0.00012087,2]
[346569989,1735099832138,-7411.55,0.00012087,2]
[346569990,1735099832148,-3188.53,0.00012087,2]
[346569991,1735099832161,-325.757,0.000123,2]
[346569992,1735099832172,-1450.07,0.00012603,2]
[346569993,1735099832183,-200.34,0.00012656,2]
[346569994,1735099832195,-1116.01722443,0.00012656,2]
[346569995,1735099832205,-342.18,0.000127,2]
[346569996,1735099832216,-984.15,0.00012805,2]
[346569997,1735099832230,-568.56408291,0.00012809,2]
[346569998,1735099832239,-28661.55417662,0.00012809,2]
[346569999,1735099832251,-31245.15532338,0.00012809,2]
[346570000,1735099832261,-200.21,0.00012814,2]
[346570001,1735099832270,-568.56408282,0.00012819,2]
[346570002,1735099832280,-568.56408282,0.00012829,2]
[346570003,1735099832289,-413.227,0.000129,2]
[346570004,1735099832298,-3272.55265677,0.000129,2]
[346570005,1735099832308,-2897.35,0.00012908,2]
[346570006,1735099832317,-2827.84,0.00012908,2]
[346570007,1735099832327,-996.79,0.00012908,2]
[346570008,1735099832336,-7075.78,0.00012908,2]
[346570009,1735099832346,-1987.04,0.00012908,2]
[346570010,1735099832355,-4415.13,0.00012908,2]
[346570011,1735099832365,-1464.75,0.00012908,2]
[346570012,1735099832374,-7147.43,0.00012908,2]
[346570013,1735099832384,-17565.95965825,0.00012908,2]
[346570016,1735099837462,-568.56408282,0.00012839,2]
[346570017,1735099837472,-568.56408282,0.00012849,2]
[346570018,1735099837481,-5438.32034175,0.00012908,2]
[346570019,1735099837491,-4154.66,0.00012908,2]
[346570020,1735099837501,-4815.75,0.00012908,2]
[346570021,1735099837511,-4622.89,0.00012908,2]
[346570022,1735099837520,-10736.72,0.00012908,2]
[346570023,1735099837529,-3271.74,0.00012908,2]
[346570024,1735099837539,-6768.55,0.00012908,2]
[346570025,1735099837548,-5179.04,0.00012908,2]
[346570026,1735099837558,-9267.98,0.00012908,2]
[346570027,1735099837567,-3006.64,0.00012908,2]
[346570028,1735099837576,-1002.23,0.00012908,2]
[346570029,1735099837585,-2492.29,0.00012908,2]
[346570030,1735099837595,-2654.62,0.00012908,2]
[346570031,1735099837606,-2471.19,0.00012908,2]
[346570032,1735099837615,-1117.17,0.00012908,2]
[346570033,1735099837625,-704.84,0.00012908,2]
[346570034,1735099837634,-2948.99,0.00012908,2]
[346570035,1735099837643,-1852.31,0.00012908,2]
[346570036,1735099837652,-500.0,0.00012908,2]
[346570037,1735099837661,-500.0,0.00012908,2]
[346570038,1735099837671,-500.0,0.00012908,2]
[346570039,1735099837681,-909.5,0.00012908,2]
[346570040,1735099837690,-517.76653177,0.00012909,2]
[346570041,1735099837700,-500.0,0.00012909,2]
[346570042,1735099837709,-500.0,0.00012909,2]
[346570043,1735099837719,-661.09,0.00012909,2]
[346570044,1735099837728,-500.0,0.00012909,2]
[346570045,1735099837737,-500.0,0.00012909,2]
[346570046,1735099837746,-500.0,0.00012909,2]
[346570047,1735099837755,-699.8,0.00012909,2]
[346570048,1735099837764,-500.0,0.00012909,2]
[346570049,1735099837773,-1161.91,0.00012909,2]
[346570050,1735099837783,-1302.76,0.00012909,2]
[346570051,1735099837792,-500.0,0.00012909,2]
[346570052,1735099837801,-500.0,0.00012909,2]
[346570053,1735099837811,-500.0,0.00012909,2]
[346570054,1735099837820,-500.0,0.00012909,2]
[346570055,1735099837829,-500.0,0.00012909,2]
[346570056,1735099837838,-500.0,0.00012909,2]
[346570057,1735099837848,-500.0,0.00012909,2]
[346570058,1735099837857,-500.0,0.00012909,2]
[346570059,1735099837867,-426.05664241,0.00012909,2]
[346570061,1735099837876,-864.14,0.00012909,2]
[346570062,1735099837886,-1077.09,0.00012909,2]
[346570063,1735099837895,-500.0,0.00012909,2]
[346570064,1735099837905,-511.02454487,0.00012909,2]
[346570065,1735099837914,-504.5411829,0.00012909,2]
[346570066,1735099837923,-500.0,0.00012909,2]
[346570068,1735099837933,-500.0,0.00012909,2]
[346570070,1735099837942,-687.05,0.00012909,2]
[346570072,1735099837951,-500.0,0.00012909,2]
[346570074,1735099837960,-500.0,0.00012909,2]
[346570076,1735099837969,-681.8,0.00012909,2]
[346570078,1735099837979,-868.49,0.00012909,2]
[346570080,1735099837988,-265.30800848,0.00012909,2]
[346570082,1735099837997,-1058.07,0.00012909,2]
[346570084,1735099838006,-500.0,0.00012909,2]
[346570086,1735099838016,-507.42,0.00012909,2]
[346570088,1735099838025,-500.0,0.00012909,2]
[346570090,1735099838034,-500.0,0.00012909,2]
[346570092,1735099838043,-1827.69,0.00012909,2]
[346570094,1735099838053,-500.0,0.00012909,2]
[346570096,1735099838062,-500.0,0.00012909,2]
[346570098,1735099838071,-500.0,0.00012909,2]
[346570100,1735099838081,-500.0,0.00012909,2]
[346570102,1735099838090,-374.88332788,0.00012909,2]
[346570104,1735099838099,-601.75,0.00012909,2]
[346570106,1735099838108,-502.43098486,0.00012909,2]
[346570108,1735099838120,-500.0,0.00012909,2]
[346570110,1735099838130,-500.0,0.00012909,2]
[346570112,1735099838139,-500.0,0.00012909,2]
[346570114,1735099838148,-500.0,0.00012909,2]
[346570116,1735099838158,-500.0,0.00012909,2]
[346570118,1735099838167,-500.0,0.00012909,2]
[346570120,1735099838176,-500.0,0.00012909,2]
[346570122,1735099838187,-591.75,0.00012909,2]
[346570124,1735099838197,-500.0,0.00012909,2]
[346570126,1735099838206,-500.0,0.00012909,2]
[346570128,1735099838215,-500.0,0.00012909,2]
[346570130,1735099838224,-500.0,0.00012909,2]
[346570132,1735099838233,-500.0,0.00012909,2]
[346570134,1735099838242,-500.0,0.00012909,2]
[346570136,1735099838251,-500.0,0.00012909,2]
[346570138,1735099838260,-500.0,0.00012909,2]
[346570140,1735099838270,-372.65871811,0.00012909,2]
[346570142,1735099838280,-500.0,0.00012909,2]
[346570144,1735099838289,-601.62,0.00012909,2]
[346570146,1735099838300,-511.45046037,0.00012909,2]
[346570148,1735099838311,-500.0,0.00012909,2]
[346570150,1735099838320,-500.0,0.00012909,2]
[346570152,1735099838329,-500.0,0.00012909,2]
[346570154,1735099838338,-500.0,0.00012909,2]
[346570156,1735099838347,-535.19220335,0.00012909,2]
[346570158,1735099838356,-991.6,0.00012909,2]
[346570160,1735099838366,-692.33,0.00012909,2]
[346570162,1735099838375,-500.0,0.00012909,2]
[346570164,1735099838383,-500.0,0.00012909,2]
[346570166,1735099838392,-1882.96,0.00012909,2]
[346570168,1735099838401,-506.06730317,0.00012909,2]
[346570169,1735099838410,-505.64881376,0.00012909,2]
[346570171,1735099838419,-500.0,0.00012909,2]
[346570173,1735099838430,-500.0,0.00012909,2]
[346570175,1735099838439,-500.0,0.00012909,2]
[346570177,1735099838449,-500.0,0.00012909,2]
[346570179,1735099838459,-1228.19,0.00012909,2]
[346570181,1735099838467,-500.0,0.00012909,2]
[346570183,1735099838476,-500.0,0.00012909,2]
[346570185,1735099838485,-500.0,0.00012909,2]
[346570187,1735099838494,-576.23,0.00012909,2]
[346570189,1735099838504,-2115.37,0.00012909,2]
[346570191,1735099838514,-500.0,0.00012909,2]
[346570193,1735099838523,-497.12702831,0.00012909,2]
[346570195,1735099838531,-500.0,0.00012909,2]
[346570197,1735099838540,-500.0,0.00012909,2]
[346570199,1735099838549,-813.59,0.00012909,2]
[346570201,1735099838558,-1013.95,0.00012909,2]
[346570203,1735099838567,-663.86,0.00012909,2]
[346570205,1735099838576,-605.71,0.00012909,2]
[346570207,1735099838585,-1170.78,0.00012909,2]
[346570209,1735099838594,-500.0,0.00012909,2]
[346570211,1735099838603,-1191.19,0.00012909,2]
[346570212,1735099838612,-509.07297895,0.00012909,2]
[346570214,1735099838621,-893.28,0.00012909,2]
[346570216,1735099838630,-500.0,0.00012909,2]
[346570218,1735099838639,-500.0,0.00012909,2]
[346570220,1735099838648,-500.0,0.00012909,2]
[346570222,1735099838657,-500.0,0.00012909,2]
[346570224,1735099838666,-711.78,0.00012909,2]
[346570226,1735099838675,-500.0,0.00012909,2]
[346570228,1735099838686,-500.0,0.00012909,2]
[346570230,1735099838694,-500.0,0.00012909,2]
[346570232,1735099838703,-500.0,0.00012909,2]
[346570234,1735099838713,-500.0,0.00012909,2]
[346570236,1735099838722,-502.24271914,0.00012909,2]
[346570238,1735099838732,-500.0,0.00012909,2]
[346570240,1735099838741,-500.0,0.00012909,2]
[346570242,1735099838750,-538.52282453,0.00012909,2]
[346570244,1735099838760,-500.0,0.00012909,2]
[346570246,1735099838769,-500.0,0.00012909,2]
[346570248,1735099838778,-805.6,0.00012909,2]
[346570250,1735099838788,-500.0,0.00012909,2]
[346570252,1735099838797,-500.0,0.00012909,2]
[346570254,1735099838807,-530.49,0.00012909,2]
[346570256,1735099838816,-500.0,0.00012909,2]
[346570258,1735099838826,-500.0,0.00012909,2]
[346570260,1735099838835,-500.0,0.00012909,2]
[346570262,1735099838845,-500.0,0.00012909,2]
[346570264,1735099838854,-500.0,0.00012909,2]
[346570266,1735099838864,-820.83,0.00012909,2]
[346570268,1735099838873,-1636.85,0.00012909,2]
[346570281,1735099839039,-500.0,0.00012909,2]
[346570282,1735099839049,-500.0,0.00012909,2]
[346570283,1735099839059,-1106.1,0.00012909,2]
[346570284,1735099839068,-500.0,0.00012909,2]
[346570285,1735099839078,-461.87180955,0.00012909,2]
[346570286,1735099839088,-1291.31,0.00012909,2]
[346570287,1735099839097,-500.0,0.00012909,2]
[346570288,1735099839107,-500.0,0.00012909,2]
[346570289,1735099839120,-500.0,0.00012909,2]
[346570290,1735099839132,-500.0,0.00012909,2]
[346570291,1735099839143,-607.99,0.00012909,2]
[346570292,1735099839155,-1711.39,0.00012909,2]
[346570293,1735099839165,-500.0,0.00012909,2]
[346570294,1735099839176,-500.0,0.00012909,2]
[346570295,1735099839188,-762.09,0.00012909,2]
[346570296,1735099839200,-500.0,0.00012909,2]
[346570297,1735099839209,-1671.26,0.00012909,2]
[346570298,1735099839219,-500.0,0.00012909,2]
[346570299,1735099839229,-500.0,0.00012909,2]
[346570300,1735099839238,-575.16,0.00012909,2]
[346570301,1735099839248,-500.0,0.00012909,2]
[346570302,1735099839257,-500.0,0.00012909,2]
[346570303,1735099839266,-1030.94,0.00012909,2]
[346570304,1735099839275,-500.0,0.00012909,2]
[346570305,1735099839285,-500.0,0.00012909,2]
[346570306,1735099839294,-500.0,0.00012909,2]
[346570307,1735099839304,-500.0,0.00012909,2]
[346570308,1735099839314,-500.0,0.00012909,2]
[346570309,1735099839323,-500.0,0.00012909,2]
[346570310,1735099839333,-500.0,0.00012909,2]
[346570311,1735099839343,-500.0,0.00012909,2]
[346570312,1735099839351,-18290.54,0.00012909,2]
[346570313,1735099839361,-500.0,0.00012909,2]
[346570314,1735099839370,-1092.8,0.00012909,2]
[346570315,1735099839380,-2301.65,0.00012909,2]
[346570316,1735099839390,-698.15,0.00012909,2]
[346570317,1735099839400,-618.75,0.00012909,2]
[346570318,1735099839410,-1561.58441358,0.00012909,2]
[346570319,1735099839451,-426.30708314,0.00012909,2]
[346570320,1735099840408,-418.54789703,0.00012909,2]
[346570321,1735099840425,-1010.02060625,0.00012909,2]
[346570322,1735099840442,-242.03413928,0.00012909,2]
[346570323,1735099840487,-502.61586072,0.00012909,2]
[346570324,1735099840503,-157.2612382,0.00012909,2]
[346570325,1735099840631,-342.7387618,0.00012909,2]
[346570326,1735099840646,-500.0,0.00012909,2]
[346570327,1735099840661,-500.0,0.00012909,2]
[346570328,1735099840676,-955.87,0.00012909,2]
[346570329,1735099840693,-3896.78,0.00012909,2]
[346570330,1735099840708,-399.43427588,0.00012909,2]
[346570331,1735099842427,-501.05350463,0.0001286,2]
[346570332,1735099842443,-67.51057819,0.0001286,2]
[346570333,1735099842453,-3784.3700982,0.00012908,2]
[346570334,1735099842582,-300.0,0.00012908,2]
[346570335,1735099842639,-999.5799018,0.00012908,2]
[346570336,1735099842649,-69.06607621,0.00012909,2]
[346570337,1735099842661,-33.75581605,0.00012909,2]
[346570338,1735099842670,-574.75,0.00012909,2]
[346570339,1735099842679,-500.0,0.00012909,2]
[346570340,1735099842690,-155.201585,0.00012909,2]
[346570341,1735099842699,-156.473705,0.00012909,2]
[346570342,1735099842708,-2613.52012,0.00012909,2]
[346570343,1735099842717,-500.0,0.00012909,2]
[346570344,1735099842727,-437.22512972,0.00012909,2]
[346570345,1735099842752,-2599.444995,0.00012909,2]
[346570346,1735099842781,-4049.1615056,0.00012909,2]
[346570687,1735099846295,-201.23,0.00012839,2]
[346570689,1735099846304,-1866.59,0.00012908,2]
[346570691,1735099846314,-93.94836968,0.00012909,2]
[346570693,1735099846324,-1835.32,0.00012909,2]
[346570695,1735099846333,-500.0,0.00012909,2]
[346570697,1735099846342,-500.0,0.00012909,2]
[346570699,1735099846351,-516.67,0.00012909,2]
[346570701,1735099846361,-741.72066732,0.00012909,2]
[346570705,1735099846388,-500.0,0.00012909,2]
[346570708,1735099846411,-1444.90030368,0.00012909,2]
[346570710,1735099846420,-500.0,0.00012909,2]
[346570712,1735099846430,-23863.42,0.00012909,2]
[346570714,1735099846440,-1699.33,0.00012909,2]
[346570716,1735099846449,-789.47,0.00012909,2]
[346570718,1735099846459,-4327.8,0.00012909,2]
[346570720,1735099846468,-500.0,0.00012909,2]
[346570722,1735099846478,-509.77764834,0.00012909,2]
[346570725,1735099846488,-500.0,0.00012909,2]
[346570726,1735099846498,-2141.58,0.00012909,2]
[346570729,1735099846508,-500.0,0.00012909,2]
[346570730,1735099846517,-500.0,0.00012909,2]
[346570732,1735099846527,-224.53377931,0.00012909,2]
[346570734,1735099846539,-500.0,0.00012909,2]
[346570736,1735099846548,-500.0,0.00012909,2]
[346570738,1735099846558,-838.57,0.00012909,2]
[346570740,1735099846567,-27272.62,0.00012909,2]
[346570742,1735099846577,-500.0,0.00012909,2]
[346570744,1735099846586,-4404.72,0.00012909,2]
[346570746,1735099846595,-1521.44,0.00012909,2]
[346570748,1735099846606,-500.0,0.00012909,2]
[346570750,1735099846616,-512.19614904,0.00012909,2]
[346570752,1735099846625,-2493.02,0.00012909,2]
[346570754,1735099846635,-1817.0,0.00012909,2]
[346570756,1735099846644,-500.0,0.00012909,2]
[346570758,1735099846653,-500.0,0.00012909,2]
[346570760,1735099846663,-652.44,0.00012909,2]
[346570762,1735099846672,-500.0,0.00012909,2]
[346570764,1735099846681,-1712.12,0.00012909,2]
[346570766,1735099846690,-265.33457743,0.00012909,2]
[346570768,1735099846699,-500.0,0.00012909,2]
[346570770,1735099846709,-3443.99,0.00012909,2]
[346570772,1735099846718,-500.0,0.00012909,2]
[346570774,1735099846728,-837.3,0.00012909,2]
[346570776,1735099846737,-500.0,0.00012909,2]
[346570778,1735099846746,-500.0,0.00012909,2]
[346570780,1735099846757,-500.0,0.00012909,2]
[346570782,1735099846766,-500.0,0.00012909,2]
[346570784,1735099846776,-2237.78,0.00012909,2]
[346570786,1735099846785,-500.0,0.00012909,2]
[346570788,1735099846794,-500.0,0.00012909,2]
[346570790,1735099846803,-4412.35,0.00012909,2]
[346570792,1735099846813,-7506.97,0.00012909,2]
[346570794,1735099846822,-1316.93,0.00012909,2]
[346570797,1735099846832,-500.0,0.00012909,2]
[346570798,1735099846841,-913.25,0.00012909,2]
[346570800,1735099846851,-500.0,0.00012909,2]
[346570802,1735099846860,-4908.3,0.00012909,2]
[346570804,1735099846869,-500.0,0.00012909,2]
[346570806,1735099846878,-852.46,0.00012909,2]
[346570808,1735099846887,-500.0,0.00012909,2]
[346570810,1735099846897,-912.44,0.00012909,2]
[346570812,1735099846907,-1850.7,0.00012909,2]
[346570814,1735099846916,-500.0,0.00012909,2]
[346570816,1735099846926,-500.0,0.00012909,2]
[346570817,1735099846936,-722.18,0.00012909,2]
[346570818,1735099846945,-3114.65,0.00012909,2]
[346570819,1735099846955,-500.0,0.00012909,2]
[346570820,1735099846964,-500.0,0.00012909,2]
[346570821,1735099846973,-500.0,0.00012909,2]
[346570822,1735099846983,-13202.0,0.00012909,2]
[346570823,1735099846992,-500.0,0.00012909,2]
[346570824,1735099847002,-506.50695353,0.00012909,2]
[346570825,1735099847012,-500.0,0.00012909,2]
[346570826,1735099847024,-9093.78,0.00012909,2]
[346570827,1735099847033,-500.0,0.00012909,2]
[346570828,1735099847042,-295.92418246,0.00012909,2]
[346570830,1735099847052,-500.0,0.00012909,2]
[346570832,1735099847061,-500.0,0.00012909,2]
[346570834,1735099847070,-2826.54,0.00012909,2]
[346570836,1735099847079,-500.0,0.00012909,2]
[346570838,1735099847088,-4714.5,0.00012909,2]
[346570840,1735099847097,-500.0,0.00012909,2]
[346570842,1735099847106,-507.45,0.00012909,2]
[346570844,1735099847119,-3086.27,0.00012909,2]
[346570846,1735099847132,-500.0,0.00012909,2]
[346570848,1735099847141,-508.41170094,0.00012909,2]
[346570849,1735099847150,-1257.88,0.00012909,2]
[346570852,1735099847162,-167.83551788,0.00012909,2]
[346570854,1735099847171,-20693.62,0.00012909,2]
[346570856,1735099847180,-500.0,0.00012909,2]
[346570858,1735099847191,-500.0,0.00012909,2]
[346570860,1735099847201,-8743.74,0.00012909,2]
[346570862,1735099847210,-500.0,0.00012909,2]
[346570864,1735099847219,-2095.62,0.00012909,2]
[346570865,1735099847228,-2468.21,0.00012909,2]
[346570867,1735099847238,-500.0,0.00012909,2]
[346570869,1735099847247,-500.0,0.00012909,2]
[346570871,1735099847256,-2069.92,0.00012909,2]
[346570873,1735099847265,-500.0,0.00012909,2]
[346570875,1735099847274,-500.0,0.00012909,2]
[346570877,1735099847284,-295.39982587,0.00012909,2]
[346570879,1735099847293,-3264.96,0.00012909,2]
[346570881,1735099847303,-6059.06,0.00012909,2]
[346570883,1735099847312,-500.0,0.00012909,2]
[346570885,1735099847321,-811.3,0.00012909,2]
[346570887,1735099847330,-919.54,0.00012909,2]
[346570889,1735099847339,-363.662435,0.00012909,2]
[346570891,1735099847348,-500.0,0.00012909,2]
[346570893,1735099847357,-529.02977927,0.00012909,2]
[346570895,1735099847366,-1391.81123316,0.0001291,2]
[346570897,1735099847375,-40257.82139675,0.0001291,2]
[346570899,1735099847384,-595.58,0.0001291,2]
[346570901,1735099847393,-782.38,0.0001291,2]
[346570903,1735099847403,-1138.23,0.0001291,2]
[346570905,1735099847411,-585.55,0.0001291,2]
[346570907,1735099847420,-878.38,0.0001291,2]
[346570909,1735099847434,-650.47,0.0001291,2]
[346570911,1735099847443,-500.0,0.0001291,2]
[346570913,1735099847452,-1174.39,0.0001291,2]
[346570915,1735099847461,-500.0,0.0001291,2]
[346570917,1735099847470,-500.0,0.0001291,2]
[346570919,1735099847479,-3053.45,0.0001291,2]
[346570921,1735099847488,-500.0,0.0001291,2]
[346570923,1735099847497,-828.42,0.0001291,2]
[346570925,1735099847506,-1722.95,0.0001291,2]
[346570927,1735099847516,-500.0,0.0001291,2]
[346570928,1735099847525,-2092.96,0.0001291,2]
[346570930,1735099847534,-500.0,0.0001291,2]
[346570932,1735099847543,-1380.37,0.0001291,2]
[346570934,1735099847552,-597.84,0.0001291,2]
[346570936,1735099847561,-1104.9,0.0001291,2]
[346570938,1735099847570,-500.0,0.0001291,2]
[346570940,1735099847578,-500.0,0.0001291,2]
[346570942,1735099847587,-842.45,0.0001291,2]
[346570944,1735099847596,-1428.03,0.0001291,2]
[346570946,1735099847605,-1115.05,0.0001291,2]
[346570948,1735099847614,-500.0,0.0001291,2]
[346570950,1735099847623,-500.0,0.0001291,2]
[346570952,1735099847632,-500.0,0.0001291,2]
[346570954,1735099847641,-1710.69,0.0001291,2]
[346570956,1735099847650,-500.0,0.0001291,2]
[346570958,1735099847659,-888.12,0.0001291,2]
[346570960,1735099847668,-500.0,0.0001291,2]
[346570962,1735099847677,-760.66,0.0001291,2]
[346570964,1735099847687,-500.0,0.0001291,2]
[346570966,1735099847695,-500.0,0.0001291,2]
[346570968,1735099847704,-2437.62,0.0001291,2]
[346570970,1735099847713,-500.0,0.0001291,2]
[346570972,1735099847722,-500.0,0.0001291,2]
[346570974,1735099847731,-500.0,0.0001291,2]
[346570976,1735099847740,-723.01,0.0001291,2]
[346570978,1735099847748,-500.0,0.0001291,2]
[346570980,1735099847757,-612.46,0.0001291,2]
[346570982,1735099847766,-500.0,0.0001291,2]
[346570984,1735099847775,-500.0,0.0001291,2]
[346570986,1735099847784,-601.29,0.0001291,2]
[346570988,1735099847793,-500.0,0.0001291,2]
[346570990,1735099847802,-500.0,0.0001291,2]
[346570992,1735099847811,-151.0,0.0001291,2]
[346570994,1735099847819,-500.0,0.0001291,2]